fUSD/lending_fUSD_20250221
["ID","MTS","AMOUNT","RATE_DAILY","PERIOD"]
[353980555,1740172279872,-500.0,0.00012024,2]
[353980556,1740172279882,-527.93,0.00012024,2]
[353980557,1740172279892,-500.0,0.00012024,2]
[353980558,1740172279903,-836.59,0.00012024,2]
[353980559,1740172279912,-1031.57,0.00012024,2]
[353980560,1740172279922,-1035.44,0.00012024,2]
[353980561,1740172279933,-500.0,0.00012024,2]
[353980562,1740172279942,-1245.12,0.00012024,2]
[353980563,1740172279952,-1117.96,0.00012024,2]
[353980564,1740172279962,-1068.45,0.00012024,2]
[353980565,1740172279972,-1183.89,0.00012024,2]
[353980566,1740172279982,-500.0,0.00012024,2]
[353980567,1740172279992,-1056.87,0.00012024,2]
[353980568,1740172280002,-5637.87,0.00012024,2]
[353980569,1740172280012,-797.09,0.00012024,2]
[353980570,1740172280022,-559.58,0.00012024,2]
[353980571,1740172280031,-1352.53,0.00012024,2]
[353980572,1740172280041,-739.7,0.00012024,2]
[353980573,1740172280051,-500.0,0.00012024,2]
[353980574,1740172280061,-1479.65,0.00012024,2]
[353980575,1740172280071,-500.0,0.00012024,2]
[353980576,1740172280082,-896.66,0.00012024,2]
[353980577,1740172280091,-2215.1,0.00012024,2]
[353980578,1740172280100,-1219.06,0.00012024,2]
[353980579,1740172280110,-500.0,0.00012024,2]
[353980580,1740172280119,-1253.82,0.00012024,2]
[353980581,1740172280128,-1134.86,0.00012024,2]
[353980582,1740172280138,-1523.22,0.00012024,2]
[353980583,1740172280147,-456.1719563,0.00012024,2]
[353980584,1740172280156,-500.0,0.00012024,2]
[353980585,1740172280165,-1190.42,0.00012024,2]
[353980586,1740172280174,-942.8,0.00012024,2]
[353980587,1740172280184,-500.0,0.00012024,2]
[353980588,1740172280193,-500.0,0.00012024,2]
[353980589,1740172280202,-500.0,0.00012024,2]
[353980590,1740172280212,-579.37,0.00012024,2]
[353980591,1740172280221,-1258.98,0.00012024,2]
[353980592,1740172280230,-1291.85,0.00012024,2]
[353980593,1740172280239,-500.0,0.00012024,2]
[353980594,1740172280248,-649.82,0.00012024,2]
[353980595,1740172280258,-1149.69,0.00012024,2]
[353980596,1740172280267,-661.23,0.00012024,2]
[353980597,1740172280276,-2660.4,0.00012024,2]
[353980598,1740172280285,-1991.69,0.00012024,2]
[353980599,1740172280294,-622.03,0.00012024,2]
[353980600,1740172280303,-500.0,0.00012024,2]
[353980601,1740172280313,-614.9,0.00012024,2]
[353980602,1740172280322,-1151.83,0.00012024,2]
[353980603,1740172280331,-500.0,0.00012024,2]
[353980604,1740172280340,-1075.7,0.00012024,2]
[353980605,1740172280350,-811.74,0.00012024,2]
[353980606,1740172280359,-855.71,0.00012024,2]
[353980607,1740172280368,-1450.82,0.00012024,2]
[353980608,1740172280378,-1170.09,0.00012024,2]
[353980609,1740172280387,-1013.9,0.00012024,2]
[353980610,1740172280395,-500.0,0.00012024,2]
[353980611,1740172280405,-500.0,0.00012024,2]
[353980612,1740172280417,-1231.28,0.00012024,2]
[353980613,1740172280427,-897.28,0.00012024,2]
[353980614,1740172280435,-1737.05,0.00012024,2]
[353980615,1740172280445,-769.3,0.00012024,2]
[353980616,1740172280455,-500.0,0.00012024,2]
[353980617,1740172280464,-853.87,0.00012024,2]
[353980618,1740172280473,-500.0,0.00012024,2]
[353980619,1740172280484,-500.0,0.00012024,2]
[353980620,1740172280494,-638.91,0.00012024,2]
[353980621,1740172280503,-916.53,0.00012024,2]
[353980622,1740172280512,-511.08,0.00012024,2]
[353980623,1740172280521,-1480.7,0.00012024,2]
[353980624,1740172280530,-1229.62,0.00012024,2]
[353980625,1740172280540,-1452.9,0.00012024,2]
[353980626,1740172280549,-580.46,0.00012024,2]
[353980627,1740172280558,-1513.79,0.00012024,2]
[353980628,1740172280568,-1136.08,0.00012024,2]
[353980629,1740172280577,-1092.95,0.00012024,2]
[353980630,1740172280586,-794.55,0.00012024,2]
[353980631,1740172280596,-761.8,0.00012024,2]
[353980632,1740172280605,-1175.93,0.00012024,2]
[353980633,1740172280614,-310.01,0.00012024,2]
[353980634,1740172280623,-500.0,0.00012024,2]
[353980635,1740172280633,-931.16,0.00012024,2]
[353980636,1740172280642,-987.72,0.00012024,2]
[353980637,1740172280651,-731.97,0.00012024,2]
[353980638,1740172280660,-500.0,0.00012024,2]
[353980639,1740172280669,-500.0,0.00012024,2]
[353980640,1740172280679,-1001.35,0.00012024,2]
[353980641,1740172280688,-1199.69,0.00012024,2]
[353980642,1740172280754,-2093.79,0.00012024,2]
[353980643,1740172280763,-1172.47,0.00012024,2]
[353980644,1740172280772,-2284.05,0.00012024,2]
[353980645,1740172280782,-5314.28,0.00012024,2]
[353980646,1740172280791,-591.75,0.00012024,2]
[353980647,1740172280800,-757.37,0.00012024,2]
[353980648,1740172280809,-1158.45,0.00012024,2]
[353980649,1740172280818,-588.49,0.00012024,2]
[353980650,1740172280827,-500.0,0.00012024,2]
[353980651,1740172280836,-500.0,0.00012024,2]
[353980652,1740172280845,-1067.6,0.00012024,2]
[353980653,1740172280854,-1637.66,0.00012024,2]
[353980654,1740172280863,-1092.4,0.00012024,2]
[353980655,1740172280873,-500.0,0.00012024,2]
[353980656,1740172280883,-170.990071,0.00012024,2]
[353980657,1740172280892,-500.0,0.00012024,2]
[353980658,1740172280901,-1130.79,0.00012024,2]
[353980659,1740172280911,-589.95,0.00012024,2]
[353980660,1740172280920,-961.8,0.00012024,2]
[353980661,1740172280929,-1427.11,0.00012024,2]
[353980662,1740172280938,-500.0,0.00012024,2]
[353980663,1740172280948,-782.56,0.00012024,2]
[353980664,1740172280957,-969.96,0.00012024,2]
[353980665,1740172280966,-839.71,0.00012024,2]
[353980666,1740172280975,-500.0,0.00012024,2]
[353980667,1740172280984,-155.989735,0.00012024,2]
[353980668,1740172280993,-597.77,0.00012024,2]
[353980669,1740172281003,-863.56,0.00012024,2]
[353980670,1740172281012,-842.52,0.00012024,2]
[353980671,1740172281021,-2270.11,0.00012024,2]
[353980672,1740172281031,-2553.24,0.00012024,2]
[353980673,1740172281040,-830.72,0.00012024,2]
[353980674,1740172281049,-663.66,0.00012024,2]
[353980675,1740172281059,-500.0,0.00012024,2]
[353980676,1740172281068,-1389.81,0.00012024,2]
[353980677,1740172281077,-519.67,0.00012026,2]
[353980678,1740172281086,-500.0,0.00012026,2]
[353980679,1740172281095,-500.0,0.00012026,2]
[353980680,1740172281104,-500.0,0.00012026,2]
[353980681,1740172281113,-390.89003032,0.00012026,2]
[353980682,1740172281122,-500.0,0.00012026,2]
[353980683,1740172281131,-500.0,0.00012026,2]
[353980684,1740172281139,-500.0,0.00012026,2]
[353980685,1740172281148,-183.44446168,0.00012026,2]
[353980686,1740172281158,-613.34713846,0.00012026,2]
[353980687,1740172281167,-500.0,0.00012026,2]
[353980688,1740172281176,-500.0,0.00012026,2]
[353980689,1740172281185,-500.0,0.00012026,2]
[353980690,1740172281194,-500.0,0.00012027,2]
[353980691,1740172281203,-902.0,0.00012027,2]
[353980692,1740172281212,-902.0,0.00012055,2]
[353980693,1740172281221,-4665.06,0.00012055,2]
[353980694,1740172281230,-902.0,0.00012082,2]
[353980695,1740172281239,-278.13,0.00012088,2]
[353980696,1740172281248,-278.13,0.00012088,2]
[353980697,1740172281257,-278.13,0.00012088,2]
[353980698,1740172281266,-278.13,0.00012088,2]
[353980699,1740172281275,-278.13,0.00012088,2]
[353980700,1740172281284,-278.13,0.00012088,2]
[353980701,1740172281293,-278.13,0.00012088,2]
[353980702,1740172281302,-278.13,0.00012088,2]
[353980703,1740172281311,-278.13,0.00012088,2]
[353980704,1740172281320,-278.13,0.00012088,2]
[353980705,1740172281329,-556.26,0.00012088,2]
[353980706,1740172281339,-7930.84512847,0.00012091,2]
[353980707,1740172281348,-1000.0,0.000121,2]
[353980708,1740172281357,-715.95,0.00012106,2]
[353980709,1740172281367,-500.0,0.00012106,2]
[353980710,1740172281376,-649.82,0.00012106,2]
[353980711,1740172281384,-622.03,0.00012106,2]
[353980712,1740172281393,-1075.7,0.00012106,2]
[353980713,1740172281402,-855.71,0.00012106,2]
[353980714,1740172281412,-1013.9,0.00012106,2]
[353980715,1740172281424,-1231.28,0.00012106,2]
[353980716,1740172281433,-769.3,0.00012106,2]
[353980717,1740172281442,-626.36660245,0.00012106,2]
[353980718,1740172281452,-916.53,0.00012106,2]
[353980719,1740172281461,-1480.7,0.00012106,2]
[353980720,1740172281470,-1452.9,0.00012106,2]
[353980721,1740172281479,-1092.95,0.00012106,2]
[353980722,1740172281488,-761.8,0.00012106,2]
[353980723,1740172281497,-931.16,0.00012106,2]
[353980724,1740172281507,-1001.35,0.00012106,2]
[353980725,1740172281517,-2093.79,0.00012106,2]
[353980726,1740172281526,-591.75,0.00012106,2]
[353980727,1740172281535,-757.37,0.00012106,2]
[353980728,1740172281544,-500.0,0.00012106,2]
[353980729,1740172281553,-1067.6,0.00012106,2]
[353980730,1740172281562,-514.47404684,0.00012106,2]
[353980731,1740172281571,-1427.11,0.00012106,2]
[353980732,1740172281580,-782.56,0.00012106,2]
[353980733,1740172281588,-969.96,0.00012106,2]
[353980734,1740172281598,-842.52,0.00012106,2]
[353980735,1740172281606,-830.72,0.00012106,2]
[353980736,1740172281615,-663.66,0.00012106,2]
[353980737,1740172281624,-538.49,0.00012107,2]
[353980738,1740172281633,-177.66022242,0.00012107,2]
[353980739,1740172281642,-691.94,0.00012107,2]
[353980740,1740172281651,-644.17,0.00012107,2]
[353980741,1740172281660,-500.0,0.00012107,2]
[353980742,1740172281668,-500.0,0.00012107,2]
[353980743,1740172281677,-667.56,0.00012107,2]
[353980744,1740172281686,-756.41,0.00012107,2]
[353980745,1740172281696,-651.32,0.00012107,2]
[353980746,1740172281705,-500.0,0.00012107,2]
[353980747,1740172281714,-500.0,0.00012107,2]
[353980748,1740172281723,-552.92,0.00012107,2]
[353980749,1740172281732,-664.1,0.00012107,2]
[353980750,1740172281742,-500.0,0.00012107,2]
[353980751,1740172281751,-500.0,0.00012107,2]
[353980752,1740172281760,-500.0,0.00012107,2]
[353980753,1740172281769,-641.81,0.00012107,2]
[353980754,1740172281778,-500.0,0.00012107,2]
[353980755,1740172281787,-500.0,0.00012107,2]
[353980756,1740172281796,-529.44,0.00012107,2]
[353980757,1740172281805,-500.0,0.00012107,2]
[353980758,1740172281814,-500.0,0.00012107,2]
[353980759,1740172281823,-580.98,0.00012107,2]
[353980760,1740172281832,-500.0,0.00012107,2]
[353980761,1740172281841,-656.48,0.00012107,2]
[353980762,1740172281850,-500.0,0.00012107,2]
[353980763,1740172281859,-645.51,0.00012107,2]
[353980764,1740172281868,-500.0,0.00012107,2]
[353980765,1740172281877,-875.23,0.00012107,2]
[353980766,1740172281887,-819.32,0.00012107,2]
[353980767,1740172281897,-514.61,0.00012107,2]
[353980768,1740172281906,-500.0,0.00012107,2]
[353980769,1740172281915,-681.73,0.00012107,2]
[353980770,1740172281924,-500.0,0.00012107,2]
[353980771,1740172281934,-773.23,0.00012107,2]
[353980772,1740172281943,-500.0,0.00012107,2]
[353980773,1740172281952,-500.0,0.00012107,2]
[353980774,1740172281961,-500.0,0.00012107,2]
[353980775,1740172281971,-500.0,0.00012107,2]
[353980776,1740172281980,-193.607216,0.00012107,2]
[353980777,1740172281989,-760.5,0.00012107,2]
[353980778,1740172281998,-500.0,0.00012107,2]
[353980779,1740172282007,-565.11,0.00012107,2]
[353980780,1740172282017,-500.0,0.00012107,2]
[353980781,1740172282026,-703.17,0.00012107,2]
[353980782,1740172282035,-500.0,0.00012107,2]
[353980783,1740172282044,-709.63,0.00012107,2]
[353980784,1740172282053,-562.69,0.00012107,2]
[353980785,1740172282062,-696.24,0.00012107,2]
[353980786,1740172282071,-567.21,0.00012107,2]
[353980787,1740172282080,-500.0,0.00012107,2]
[353980788,1740172282090,-694.16,0.00012107,2]
[353980789,1740172282099,-678.43,0.00012107,2]
[353980790,1740172282108,-690.55,0.00012107,2]
[353980791,1740172282117,-500.0,0.00012107,2]
[353980792,1740172282126,-663.28,0.00012107,2]
[353980793,1740172282134,-996.53,0.00012107,2]
[353980794,1740172282143,-731.38,0.00012107,2]
[353980795,1740172282152,-190.66082676,0.00012107,2]
[353980796,1740172282162,-643.91,0.00012107,2]
[353980797,1740172282171,-500.0,0.00012107,2]
[353980798,1740172282180,-500.0,0.00012107,2]
[353980799,1740172282189,-731.06,0.00012107,2]
[353980800,1740172282198,-273.44648746,0.00012107,2]
[353980801,1740172282207,-500.0,0.00012107,2]
[353980802,1740172282216,-500.0,0.00012107,2]
[353980803,1740172282225,-710.81,0.00012107,2]
[353980804,1740172282234,-500.6,0.00012107,2]
[353980805,1740172282245,-624.32,0.00012107,2]
[353980806,1740172282254,-500.0,0.00012107,2]
[353980807,1740172282263,-595.44,0.00012107,2]
[353980808,1740172282273,-751.36,0.00012107,2]
[353980809,1740172282281,-636.57,0.00012107,2]
[353980810,1740172282290,-500.0,0.00012107,2]
[353980811,1740172282299,-535.7133687,0.00012107,2]
[353980812,1740172282308,-893.82,0.00012107,2]
[353980813,1740172282317,-500.0,0.00012107,2]
[353980814,1740172282327,-174.831552,0.00012107,2]
[353980815,1740172282336,-500.0,0.00012107,2]
[353980816,1740172282345,-500.0,0.00012107,2]
[353980817,1740172282354,-587.07,0.00012107,2]
[353980818,1740172282363,-500.0,0.00012107,2]
[353980819,1740172282373,-1704.14,0.00012107,2]
[353980820,1740172282382,-500.0,0.00012107,2]
[353980821,1740172282390,-870.24,0.00012107,2]
[353980822,1740172282399,-523.06,0.00012107,2]
[353980823,1740172282412,-1140.49,0.00012107,2]
[353980824,1740172282422,-1885.94,0.00012107,2]
[353980825,1740172282431,-762.29,0.00012107,2]
[353980826,1740172282440,-985.36,0.00012107,2]
[353980827,1740172282449,-1329.74,0.00012107,2]
[353980828,1740172282461,-1050.0,0.00012107,2]
[353980829,1740172282470,-841.39,0.00012107,2]
[353980830,1740172282479,-1478.11,0.00012107,2]
[353980831,1740172282491,-1687.94,0.00012107,2]
[353980832,1740172282501,-1236.11,0.00012107,2]
[353980833,1740172282510,-500.0,0.00012107,2]
[353980834,1740172282521,-527.93,0.00012107,2]
[353980835,1740172282530,-500.0,0.00012107,2]
[353980836,1740172282539,-836.59,0.00012107,2]
[353980837,1740172282548,-1031.57,0.00012107,2]
[353980838,1740172282558,-1035.44,0.00012107,2]
[353980839,1740172282567,-500.0,0.00012107,2]
[353980840,1740172282576,-1245.12,0.00012107,2]
[353980841,1740172282585,-1117.96,0.00012107,2]
[353980842,1740172282595,-1068.45,0.00012107,2]
[353980843,1740172282604,-1183.89,0.00012107,2]
[353980844,1740172282613,-500.0,0.00012107,2]
[353980845,1740172282622,-1056.87,0.00012107,2]
[353980846,1740172282631,-5637.87,0.00012107,2]
[353980847,1740172282640,-797.09,0.00012107,2]
[353980848,1740172282649,-559.58,0.00012107,2]
[353980849,1740172282659,-1352.53,0.00012107,2]
[353980850,1740172282668,-739.7,0.00012107,2]
[353980851,1740172282677,-500.0,0.00012107,2]
[353980852,1740172282686,-1479.65,0.00012107,2]
[353980853,1740172282695,-500.0,0.00012107,2]
[353980854,1740172282704,-896.66,0.00012107,2]
[353980855,1740172282714,-2215.1,0.00012107,2]
[353980856,1740172282723,-1219.06,0.00012107,2]
[353980857,1740172282732,-500.0,0.00012107,2]
[353980858,1740172282744,-1253.82,0.00012107,2]
[353980859,1740172282753,-1134.86,0.00012107,2]
[353980860,1740172282763,-1523.22,0.00012107,2]
[353980861,1740172282773,-242.08674689,0.00012107,2]
[353980862,1740172282782,-1190.42,0.00012107,2]
[353980863,1740172282792,-942.8,0.00012107,2]
[353980864,1740172282802,-500.0,0.00012107,2]
[353980865,1740172282811,-500.0,0.00012107,2]
[353980866,1740172282822,-579.37,0.00012107,2]
[353980867,1740172282831,-1258.98,0.00012107,2]
[353980868,1740172282840,-1291.85,0.00012107,2]
[353980869,1740172282849,-500.0,0.00012107,2]
[353980870,1740172282859,-1149.69,0.00012107,2]
[353980871,1740172282869,-661.23,0.00012107,2]
[353980872,1740172282880,-2660.4,0.00012107,2]
[353980873,1740172282889,-1991.69,0.00012107,2]
[353980874,1740172282899,-259.15024207,0.00012107,2]
[353980875,1740172282909,-614.9,0.00012107,2]
[353980876,1740172282918,-1151.83,0.00012107,2]
[353980877,1740172282928,-500.0,0.00012107,2]
[353980878,1740172282938,-811.74,0.00012107,2]
[353980879,1740172282947,-1450.82,0.00012107,2]
[353980880,1740172282956,-1170.09,0.00012107,2]
[353980881,1740172282966,-500.0,0.00012107,2]
[353980882,1740172282975,-500.0,0.00012107,2]
[353980883,1740172282984,-897.28,0.00012107,2]
[353980884,1740172282995,-1737.05,0.00012107,2]
[353980885,1740172283005,-500.0,0.00012107,2]
[353980886,1740172283016,-853.87,0.00012107,2]
[353980887,1740172283025,-451.99645634,0.00012107,2]
[353980888,1740172283034,-638.91,0.00012107,2]
[353980889,1740172283044,-511.08,0.00012107,2]
[353980890,1740172283053,-1229.62,0.00012107,2]
[353980891,1740172283063,-580.46,0.00012107,2]
[353980892,1740172283072,-1513.79,0.00012107,2]
[353980893,1740172283082,-1136.08,0.00012107,2]
[353980894,1740172283091,-794.55,0.00012107,2]
[353980895,1740172283100,-1175.93,0.00012107,2]
[353980896,1740172283110,-500.0,0.00012107,2]
[353980897,1740172283120,-987.72,0.00012107,2]
[353980898,1740172283129,-731.97,0.00012107,2]
[353980899,1740172283139,-212.15910202,0.00012107,2]
[353980900,1740172283148,-1199.69,0.00012107,2]
[353980901,1740172283158,-1172.47,0.00012107,2]
[353980902,1740172283167,-2284.05,0.00012107,2]
[353980903,1740172283177,-5314.28,0.00012107,2]
[353980904,1740172283186,-1158.45,0.00012107,2]
[353980905,1740172283196,-588.49,0.00012107,2]
[353980906,1740172283206,-500.0,0.00012107,2]
[353980907,1740172283216,-1637.66,0.00012107,2]
[353980908,1740172283226,-1092.4,0.00012107,2]
[353980909,1740172283235,-500.0,0.00012107,2]
[353980910,1740172283250,-1130.79,0.00012107,2]
[353980911,1740172283260,-589.95,0.00012107,2]
[353980912,1740172283270,-961.8,0.00012107,2]
[353980913,1740172283280,-500.0,0.00012107,2]
[353980914,1740172283290,-839.71,0.00012107,2]
[353980915,1740172283300,-500.0,0.00012107,2]
[353980916,1740172283309,-597.77,0.00012107,2]
[353980917,1740172283319,-863.56,0.00012107,2]
[353980918,1740172283330,-2270.11,0.00012107,2]
[353980919,1740172283340,-2553.24,0.00012107,2]
[353980920,1740172283350,-500.0,0.00012107,2]
[353980921,1740172283359,-1389.81,0.00012107,2]
[353980922,1740172283368,-519.67,0.00012108,2]
[353980923,1740172283378,-500.0,0.00012108,2]
[353980924,1740172283387,-500.0,0.00012108,2]
[353980925,1740172283397,-500.0,0.00012108,2]
[353980926,1740172283406,-500.0,0.00012108,2]
[353980927,1740172283419,-190.13575177,0.00012108,2]
[353980928,1740172283429,-500.0,0.00012108,2]
[353980929,1740172283439,-500.0,0.00012108,2]
[353980930,1740172283448,-500.0,0.00012108,2]
[353980931,1740172283458,-500.0,0.00012108,2]
[353980932,1740172283470,-500.0,0.00012109,2]
[353980933,1740172283480,-902.0,0.00012109,2]
[353980934,1740172283491,-8000.0,0.00012134,3]
[353980935,1740172283500,-902.0,0.00012137,2]
[353980936,1740172283510,-4217.13181045,0.00012153,2]
[353980937,1740172283519,-902.0,0.00012164,2]
[353980938,1740172283529,-165.83,0.00012167,2]
[353980939,1740172283539,-11265.40556332,0.00012171,2]
[353980940,1740172283549,-500.0,0.00012188,2]
[353980941,1740172283558,-649.82,0.00012188,2]
[353980942,1740172283568,-622.03,0.00012188,2]
[353980943,1740172283577,-1075.7,0.00012188,2]
[353980944,1740172283587,-855.71,0.00012188,2]
[353980945,1740172283597,-1013.9,0.00012188,2]
[353980946,1740172283607,-1231.28,0.00012188,2]
[353980947,1740172283617,-769.3,0.00012188,2]
[353980948,1740172283627,-916.53,0.00012188,2]
[353980949,1740172283636,-1480.7,0.00012188,2]
[353980950,1740172283646,-1452.9,0.00012188,2]
[353980951,1740172283656,-1092.95,0.00012188,2]
[353980952,1740172283665,-761.8,0.00012188,2]
[353980953,1740172283675,-931.16,0.00012188,2]
[353980954,1740172283686,-1001.35,0.00012188,2]
[353980955,1740172283695,-2093.79,0.00012188,2]
[353980956,1740172283705,-591.75,0.00012188,2]
[353980957,1740172283714,-757.37,0.00012188,2]
[353980958,1740172283724,-500.0,0.00012188,2]
[353980959,1740172283734,-1067.6,0.00012188,2]
[353980960,1740172283745,-1427.11,0.00012188,2]
[353980961,1740172283755,-782.56,0.00012188,2]
[353980962,1740172283765,-969.96,0.00012188,2]
[353980963,1740172283775,-842.52,0.00012188,2]
[353980964,1740172283785,-830.72,0.00012188,2]
[353980965,1740172283795,-663.66,0.00012188,2]
[353980966,1740172283805,-538.49,0.00012189,2]
[353980967,1740172283815,-691.94,0.00012189,2]
[353980968,1740172283825,-644.17,0.00012189,2]
[353980969,1740172283835,-500.0,0.00012189,2]
[353980970,1740172283845,-500.0,0.00012189,2]
[353980971,1740172283854,-667.56,0.00012189,2]
[353980972,1740172283863,-756.41,0.00012189,2]
[353980973,1740172283875,-651.32,0.00012189,2]
[353980974,1740172283885,-500.0,0.00012189,2]
[353980975,1740172283896,-500.0,0.00012189,2]
[353980976,1740172283906,-552.92,0.00012189,2]
[353980977,1740172283916,-664.1,0.00012189,2]
[353980978,1740172283928,-589.31003808,0.00012189,2]
[353980979,1740172283938,-500.0,0.00012189,2]
[353980980,1740172283948,-500.0,0.00012189,2]
[353980981,1740172283959,-641.81,0.00012189,2]
[353980982,1740172283970,-500.0,0.00012189,2]
[353980983,1740172283980,-500.0,0.00012189,2]
[353980984,1740172283991,-529.44,0.00012189,2]
[353980985,1740172284002,-500.0,0.00012189,2]
[353980986,1740172284011,-500.0,0.00012189,2]
[353980987,1740172284021,-580.98,0.00012189,2]
[353980988,1740172284031,-500.0,0.00012189,2]
[353980989,1740172284040,-656.48,0.00012189,2]
[353980990,1740172284051,-500.0,0.00012189,2]
[353980991,1740172284061,-645.51,0.00012189,2]
[353980992,1740172284071,-500.0,0.00012189,2]
[353980993,1740172284081,-875.23,0.00012189,2]
[353980994,1740172284091,-819.32,0.00012189,2]
[353980995,1740172284101,-514.61,0.00012189,2]
[353980996,1740172284111,-500.0,0.00012189,2]
[353980997,1740172284120,-681.73,0.00012189,2]
[353980998,1740172284130,-500.0,0.00012189,2]
[353980999,1740172284140,-773.23,0.00012189,2]
[353981000,1740172284150,-500.0,0.00012189,2]
[353981001,1740172284159,-500.0,0.00012189,2]
[353981002,1740172284168,-522.77586955,0.00012189,2]
[353981003,1740172284178,-500.0,0.00012189,2]
[353981004,1740172284188,-193.607216,0.00012189,2]
[353981005,1740172284198,-760.5,0.00012189,2]
[353981006,1740172284208,-500.0,0.00012189,2]
[353981007,1740172284218,-565.11,0.00012189,2]
[353981008,1740172284228,-500.0,0.00012189,2]
[353981009,1740172284240,-703.17,0.00012189,2]
[353981010,1740172284250,-500.0,0.00012189,2]
[353981011,1740172284260,-709.63,0.00012189,2]
[353981012,1740172284270,-562.69,0.00012189,2]
[353981013,1740172284281,-696.24,0.00012189,2]
[353981014,1740172284291,-567.21,0.00012189,2]
[353981015,1740172284300,-500.0,0.00012189,2]
[353981016,1740172284310,-694.16,0.00012189,2]
[353981017,1740172284320,-678.43,0.00012189,2]
[353981018,1740172284331,-690.55,0.00012189,2]
[353981019,1740172284340,-500.0,0.00012189,2]
[353981020,1740172284350,-663.28,0.00012189,2]
[353981021,1740172284360,-996.53,0.00012189,2]
[353981022,1740172284370,-731.38,0.00012189,2]
[353981023,1740172284380,-643.91,0.00012189,2]
[353981024,1740172284390,-559.09161613,0.00012189,2]
[353981025,1740172284399,-500.0,0.00012189,2]
[353981026,1740172284410,-731.06,0.00012189,2]
[353981027,1740172284423,-500.0,0.00012189,2]
[353981028,1740172284433,-500.0,0.00012189,2]
[353981029,1740172284443,-710.81,0.00012189,2]
[353981030,1740172284454,-500.6,0.00012189,2]
[353981031,1740172284464,-624.32,0.00012189,2]
[353981032,1740172284473,-500.0,0.00012189,2]
[353981033,1740172284483,-595.44,0.00012189,2]
[353981034,1740172284495,-751.36,0.00012189,2]
[353981035,1740172284506,-636.57,0.00012189,2]
[353981036,1740172284516,-500.0,0.00012189,2]
[353981037,1740172284525,-893.82,0.00012189,2]
[353981038,1740172284535,-500.0,0.00012189,2]
[353981039,1740172284545,-174.831552,0.00012189,2]
[353981040,1740172284555,-305.86331006,0.00012189,2]
[353981041,1740172284564,-500.0,0.00012189,2]
[353981042,1740172284574,-587.07,0.00012189,2]
[353981043,1740172284584,-500.0,0.00012189,2]
[353981044,1740172284594,-1704.14,0.00012189,2]
[353981045,1740172284604,-500.0,0.00012189,2]
[353981046,1740172284614,-870.24,0.00012189,2]
[353981047,1740172284623,-523.06,0.00012189,2]
[353981048,1740172284633,-1140.49,0.00012189,2]
[353981049,1740172284643,-1885.94,0.00012189,2]
[353981050,1740172284653,-762.29,0.00012189,2]
[353981051,1740172284663,-985.36,0.00012189,2]
[353981052,1740172284672,-1329.74,0.00012189,2]
[353981053,1740172284683,-1050.0,0.00012189,2]
[353981054,1740172284692,-841.39,0.00012189,2]